bitfinex-derivatives/quotes_SOLF0:USTF0_20241015
["timestamp","ask_amount","ask_price","bid_price","bid_amount"]
[1728992414403,5.42,153.33,153.24,4.12]
[1728992414607,25.06,153.31,153.24,2.726]
[1728992414805,25.06,153.29,153.19,5.42]
[1728992415006,3.2628,153.27,153.19,5.42]
[1728992415309,3.2628,153.27,153.23,3.2634]
[1728992415500,3.263,153.26,153.23,3.2634]
[1728992415804,5.42,153.29,153.19,5.42]
[1728992416105,8.6822,153.29,153.2,25.06]
[1728992416301,5.42,153.32,153.26,3.2627]
[1728992416502,5.42,153.32,153.23,5.42]
[1728992416708,8.6816,153.32,153.24,4.026]
[1728992416914,8.6816,153.32,153.28,3.2624]
[1728992417106,3.2616,153.32,153.24,4.026]
[1728992417409,3.2616,153.32,153.28,3.2623]
[1728992418411,3.2616,153.32,153.24,4.026]
[1728992418608,3.2616,153.32,153.28,3.2623]
[1728992418810,3.2619,153.31,153.28,3.2623]
[1728992421707,5.42,153.33,153.28,3.2623]
[1728992421901,5.42,153.33,153.24,4.026]
[1728992423021,3.2617,153.32,153.29,3.2622]
[1728992423212,5.42,153.34,153.24,4.026]
[1728992424425,3.2612,153.34,153.25,25.06]
[1728992424619,5.42,153.36,153.25,25.06]
[1728992425122,3.2614,153.33,153.3,3.2618]
[1728992425412,5.42,153.36,153.27,5.42]
[1728992425612,3.2616,153.32,153.29,3.262]
[1728992425816,5.42,153.36,153.27,5.42]
[1728992426207,30.48,153.36,153.27,5.42]
[1728992426516,3.2615,153.33,153.29,3.2621]
[1728992426712,3.2615,153.33,153.27,5.42]
[1728992427309,3.2616,153.32,153.27,5.42]
[1728992427511,3.2616,153.32,153.29,3.2621]
[1728992427713,5.42,153.35,153.29,3.2621]
[1728992427917,3.2615,153.33,153.29,3.2621]
[1728992428312,3.2615,153.33,153.3,3.262]
[1728992429916,21.1,153.35,153.24,4.026]
[1728992430115,15.68,153.33,153.24,25.066]
[1728992430820,3.262,153.31,153.27,3.2625]
[1728992431722,3.262,153.31,153.28,3.2624]
[1728992432221,3.2613,153.34,153.31,3.2617]
[1728992432417,5.42,153.35,153.26,15.68]
[1728992433035,3.2615,153.33,153.26,15.68]
[1728992433327,20.31839624,153.38,153.28,15.68]
[1728992433519,3.2612,153.34,153.31,3.2616]
[1728992433710,15.68,153.36,153.24,9.386]
[1728992433915,15.68,153.36,153.26,15.68]
[1728992434116,3.2617,153.32,153.29,3.262]
[1728992434523,15.68,153.36,153.26,15.68]
[1728992434720,3.2617,153.32,153.29,3.2621]
[1728992434923,15.68,153.36,153.26,15.68]
[1728992435117,15.68,153.34,153.26,15.68]
[1728992435317,3.2619,153.31,153.28,3.2623]
[1728992436127,3.2623,153.29,153.26,3.2628]
[1728992436814,3.2621,153.3,153.27,3.2625]
[1728992437013,5.36,153.33,153.24,19.706]
[1728992437619,3.2618,153.31,153.28,3.2623]
[1728992438125,5.36,153.34,153.26,15.68]
[1728992438319,3.2614,153.33,153.3,3.2619]
[1728992438525,5.36,153.35,153.28,15.68]
[1728992439525,8.6211,153.35,153.28,15.68]
[1728992439926,5.36,153.35,153.28,15.68]
[1728992440225,3.2613,153.34,153.3,3.262]
[1728992440826,20.31839624,153.38,153.28,15.68]
[1728992441025,3.2608,153.36,153.3,15.68]
[1728992441220,3.2608,153.36,153.31,1.4022]
[1728992441725,3.2608,153.36,153.32,3.2615]
[1728992441925,3.2608,153.36,153.31,1.4022]
[1728992442422,3.2608,153.36,153.32,3.2615]
[1728992442927,3.2608,153.36,153.33,3.2614]
[1728992443225,3.26,153.4,153.32,15.68]
[1728992443421,3.29973316,153.4,153.32,15.68]
[1728992443624,15.68,153.4,153.32,15.68]
[1728992444019,3.2604,153.38,153.35,3.2608]
[1728992444219,3.2604,153.38,153.32,15.68]
[1728992445119,3.2604,153.38,153.35,3.2608]
[1728992445626,3.2604,153.38,153.36,3.2607]
[1728992445927,15.68,153.4,153.36,3.2607]
[1728992446127,3.2604,153.38,153.32,15.68]
[1728992446429,15.68,153.4,153.32,15.68]
[1728992446723,8.66049683,153.41,153.32,3.2614]
[1728992446724,15.68,153.38,153.32,3.2614]
[1728992446917,15.68,153.38,153.31,1.4022]
[1728992447115,3.261,153.36,153.31,1.4022]
[1728992447315,15.68,153.38,153.33,3.2614]
[1728992447524,5.36,153.37,153.33,3.2614]
[1728992447723,3.2609,153.36,153.33,3.2614]
[1728992448528,3.2609,153.36,153.34,3.2611]
[1728992449021,3.2598,153.41,153.32,15.68]
[1728992449226,3.2598,153.41,153.34,21.04]
[1728992449416,3.33084548,153.44,153.34,21.04]
[1728992449621,0.99847535,153.43,153.34,21.04]
[1728992449819,15.68,153.41,153.34,5.36]
[1728992450019,3.2603,153.38,153.34,3.261]
[1728992450223,3.2603,153.38,153.32,23.6516]
[1728992450626,3.2612,153.34,153.31,1.4022]
[1728992451717,21.04,153.37,153.31,4.6638]
[1728992452132,21.04,153.37,153.31,4.664]
[1728992452332,15.68,153.35,153.29,5.36]
[1728992452630,15.68,153.36,153.31,3.2616]
[1728992453729,3.2613,153.34,153.31,3.2616]
[1728992454232,3.2611,153.35,153.32,3.2615]
[1728992454432,15.68,153.36,153.29,5.36]
[1728992454927,3.2613,153.34,153.31,3.2617]
[1728992455132,15.68,153.36,153.29,5.36]
[1728992456031,18.9408,153.36,153.33,3.2612]
[1728992456334,5.36,153.38,153.3,15.68]
[1728992456534,5.36,153.38,153.34,3.2611]
[1728992456535,3.2606,153.37,153.34,3.2611]
[1728992456834,6.666,153.4,153.32,15.68]
[1728992457031,15.68,153.43,153.33,6.7428]
[1728992457232,0.99826515,153.42,153.34,15.68]
[1728992457535,5.36,153.43,153.34,15.68]
[1728992457732,3.2596,153.42,153.39,3.26]
[1728992458325,3.2593,153.43,153.4,3.2598]
[1728992458530,5.36,153.44,153.36,15.68]
[1728992458726,5.36,153.44,153.38,15.68]
[1728992458932,5.36,153.44,153.39,1.3828]
[1728992459134,1.423,153.47,153.39,1.3828]
[1728992459341,5.36,153.47,153.39,1.3828]
[1728992459631,3.2584,153.47,153.43,3.2591]
[1728992460034,21.04,153.48,153.39,1.3828]
[1728992460240,15.68,153.46,153.39,1.3828]
[1728992460532,5.36,153.48,153.37,5.36]
[1728992460533,15.68,153.44,153.37,5.36]
[1728992460736,18.9397,153.42,153.38,3.2602]
[1728992461038,15.68,153.42,153.38,3.2602]
[1728992461427,18.9396,153.42,153.37,5.36]
[1728992461633,18.9396,153.42,153.39,3.2601]
[1728992461833,3.2594,153.43,153.37,5.36]
[1728992462233,3.2594,153.43,153.39,3.26]
[1728992462633,3.2594,153.43,153.4,3.2599]
[1728992462836,3.2594,153.43,153.37,5.36]
[1728992463337,3.259,153.45,153.37,5.36]
[1728992463541,5.36,153.46,153.37,30.42]
[1728992463831,5.36,153.47,153.41,3.2596]
[1728992464044,3.259,153.45,153.41,3.2596]
[1728992464339,5.36,153.47,153.41,3.2596]
[1728992464637,3.259,153.44,153.41,3.2596]
[1728992465137,5.36,153.47,153.37,30.42]
[1728992465328,3.2589,153.45,153.42,3.2594]
[1728992465531,76.31627864,153.54,153.39,25.06]
[1728992465727,0.99867511,153.5,153.4,8.0941]
[1728992465932,4.25647511,153.5,153.46,3.2584]
[1728992466236,4.25647511,153.5,153.4,8.0941]
[1728992466237,0.99867511,153.49,153.4,8.0941]
[1728992466437,10.0182,153.51,153.44,3.259]
[1728992466637,0.99873361,153.5,153.44,5.36]
[1728992466839,8.6177,153.51,153.44,5.36]
[1728992467040,8.6177,153.51,153.47,3.2583]
[1728992467336,8.6177,153.51,153.44,5.36]
[1728992467639,8.6177,153.51,153.47,3.2582]
[1728992468931,3.2577,153.51,153.44,5.36]
[1728992469136,3.2575,153.52,153.44,5.36]
[1728992469440,0.99882337,153.51,153.44,5.36]
[1728992469641,81.67627864,153.54,153.44,30.42]
[1728992469939,0.99887487,153.53,153.44,30.42]
[1728992470138,3.2582,153.49,153.45,3.2587]
[1728992470528,5.36,153.5,153.4,2.7341]
[1728992470733,3.2586,153.47,153.43,3.2591]
[1728992471534,3.2589,153.45,153.42,3.2594]
[1728992473841,25.06,153.48,153.4,2.7341]
[1728992474147,25.06,153.46,153.4,1.4109]
[1728992474341,33.70388346,153.46,153.4,1.4109]
[1728992474933,0.9984589,153.45,153.35,6.7442]
[1728992475252,33.70388346,153.46,153.38,3.2602]
[1728992475253,3.2596,153.42,153.38,3.2602]
[1728992475433,3.2596,153.42,153.35,6.7442]
[1728992476144,33.70388346,153.46,153.35,6.7442]
[1728992476145,3.2597,153.41,153.35,6.7442]
[1728992476441,5.36,153.42,153.35,1.3842]
[1728992476643,3.2603,153.39,153.35,1.3842]
[1728992477133,5.36,153.42,153.35,4.6451]
[1728992477340,3.2605,153.38,153.35,4.6451]
[1728992477545,25.06,153.41,153.32,6.6918]
[1728992477850,3.2607,153.37,153.32,6.6918]
[1728992478851,3.2603,153.39,153.32,6.6918]
[1728992479050,0.99827294,153.38,153.29,1.3142]
[1728992479255,25.06,153.36,153.29,4.5764]
[1728992479556,3.2615,153.33,153.29,4.5764]
[1728992479744,30.42,153.36,153.29,4.5764]
[1728992479942,0.99809907,153.35,153.29,4.5764]
[1728992480154,0.99809907,153.35,153.29,1.3142]
[1728992480357,0.99809907,153.35,153.31,3.2617]
[1728992480553,3.2613,153.34,153.31,3.2617]
[1728992481553,3.2614,153.33,153.3,3.2619]
[1728992482057,30.42,153.36,153.29,1.3142]
[1728992482352,0.99849116,153.35,153.29,1.3142]
[1728992483151,3.2617,153.32,153.29,4.5763]
[1728992484250,3.2615,153.33,153.3,3.262]
[1728992485556,3.2615,153.33,153.26,6.6505]
[1728992485557,5.36,153.36,153.28,3.2623]
[1728992485750,0.99837999,153.35,153.26,6.6505]
[1728992486653,5.36,153.36,153.26,6.6505]
[1728992486854,3.2617,153.32,153.29,3.2621]
[1728992489051,3.2616,153.32,153.29,3.2622]
[1728992491454,18.9222,153.3,153.25,3.2629]
[1728992491657,18.9222,153.3,153.24,1.2908]
[1728992492262,18.9222,153.3,153.27,3.2626]
[1728992492958,18.9222,153.3,153.24,1.2908]
[1728992492959,3.2618,153.31,153.28,3.2623]
[1728992497265,3.2623,153.29,153.26,3.2627]
[1728992497570,15.66,153.29,153.24,1.2908]
[1728992497963,3.2625,153.28,153.25,3.263]
[1728992498264,15.66,153.29,153.25,3.263]
[1728992498464,15.66,153.29,153.24,1.2908]
[1728992499160,15.66,153.29,153.25,3.2631]
[1728992499866,3.22386482,153.3,153.25,3.2631]
[1728992500066,15.66,153.31,153.24,1.2908]
[1728992500266,15.66,153.31,153.26,3.2629]
[1728992500659,15.66,153.31,153.24,1.2908]
[1728992500865,15.66,153.31,153.25,3.263]
[1728992501261,15.66,153.31,153.24,1.2908]
[1728992501460,20.92,153.32,153.24,1.2908]
[1728992501669,20.92,153.32,153.24,16.9508]
[1728992502367,20.92,153.32,153.28,3.2622]
[1728992503271,20.92,153.32,153.29,3.2622]
[1728992503469,20.92,153.32,153.24,16.9508]
[1728992504473,20.92,153.32,153.29,3.2621]
[1728992505175,20.92,153.32,153.24,16.9508]
[1728992505372,20.92,153.32,153.3,3.262]
[1728992506170,20.92,153.32,153.24,16.9508]
[1728992506171,15.66,153.32,153.27,3.2626]
[1728992506371,5.26,153.33,153.25,5.26]
[1728992506867,5.26,153.33,153.27,3.2626]
[1728992507076,5.26,153.33,153.25,5.26]
[1728992507468,15.66,153.32,153.3,3.2619]
[1728992508368,15.66,153.32,153.25,5.26]
[1728992508679,15.66,153.3,153.25,5.26]
[1728992509272,15.66,153.3,153.29,3.2622]
[1728992511081,18.95983079,153.3,153.26,3.2627]
[1728992511388,18.95983079,153.3,153.16,7.8776]
[1728992511389,15.66,153.26,153.16,7.8776]
[1728992511590,15.66,153.24,153.18,5.26]
[1728992512887,15.66,153.24,153.2,3.264]
[1728992513089,15.66,153.24,153.18,5.26]
[1728992513296,15.66,153.24,153.17,5.26]
[1728992513488,15.66,153.24,153.21,3.2638]
[1728992514491,15.66,153.24,153.17,5.26]
[1728992516187,15.66,153.24,153.21,3.2639]
[1728992516691,15.66,153.24,153.17,5.26]
[1728992516692,15.66,153.24,153.16,3.9754]
[1728992516885,15.66,153.24,153.23,3.2635]
[1728992517088,5.26,153.26,153.19,15.66]
[1728992517396,8.46096012,153.28,153.25,3.2629]
[1728992517785,18.3297,153.29,153.21,15.66]
[1728992517987,22.2167,153.29,153.21,15.66]
[1728992518188,15.66,153.29,153.22,1.3143]
[1728992518389,24.1812,153.34,153.28,3.2623]
[1728992519489,15.66,153.32,153.28,3.2623]
[1728992521293,15.66,153.32,153.29,3.2622]
[1728992521794,20.92,153.34,153.25,15.66]
[1728992522099,5.26,153.35,153.25,15.66]
[1728992522900,1.2981,153.37,153.28,15.66]
[1728992523200,16.9716,153.4,153.3,15.66]
[1728992523398,5.26,153.39,153.3,15.66]
[1728992523594,5.26,153.39,153.34,3.2611]
[1728992523794,5.26,153.39,153.3,17.0549]
[1728992524497,5.26,153.39,153.34,3.261]
[1728992524891,5.26,153.39,153.3,17.0549]
[1728992525088,5.26,153.39,153.35,3.2609]
[1728992525493,8.5201,153.39,153.34,3.261]
[1728992525694,18.93014818,153.38,153.3,17.0549]
[1728992525891,15.66,153.38,153.3,17.0549]
[1728992526095,15.66,153.4,153.3,17.0549]
[1728992526290,20.92,153.4,153.3,17.0549]
[1728992527203,3.2602,153.39,153.33,3.2613]
[1728992527900,3.2602,153.39,153.3,17.0549]
[1728992528103,3.2602,153.39,153.34,3.2611]
[1728992529503,15.66,153.37,153.34,3.2611]
[1728992530298,15.66,153.35,153.31,3.2617]
[1728992530501,15.66,153.35,153.29,2.7263]
[1728992530697,15.66,153.33,153.29,5.9883]
[1728992530899,15.66,153.33,153.29,1.3157]
[1728992531103,8.46183411,153.36,153.29,1.3157]
[1728992531104,15.66,153.36,153.29,1.3157]
[1728992531297,5.26,153.37,153.29,16.9757]
[1728992531807,15.66,153.38,153.29,16.9757]
[1728992532001,15.66,153.38,153.34,3.2611]
[1728992534199,15.66,153.38,153.35,3.2609]
[1728992535106,15.66,153.38,153.34,3.261]
[1728992535107,18.9204,153.38,153.34,3.261]
[1728992536213,15.66,153.36,153.32,3.2614]
[1728992536407,15.66,153.36,153.29,1.3157]
[1728992536608,18.87467216,153.36,153.29,1.3157]
[1728992536912,3.2611,153.35,153.32,3.2616]
[1728992538812,18.9208,153.36,153.32,3.2616]
[1728992539110,24.18731129,153.38,153.29,1.3157]
[1728992539315,0.99851433,153.37,153.29,1.3157]
[1728992540909,15.66,153.36,153.29,1.3157]
[1728992541808,15.66,153.34,153.29,1.3157]
[1728992543112,15.66,153.34,153.31,3.2618]
[1728992543813,15.66,153.33,153.25,1.3364]
[1728992544006,15.66,153.3,153.25,1.3364]
[1728992544510,15.66,153.3,153.27,3.2625]
[1728992544709,15.66,153.32,153.25,1.3364]
[1728992545615,18.9213,153.34,153.3,3.2619]
[1728992545816,0.99832184,153.33,153.3,3.2619]
[1728992546222,18.9213,153.34,153.3,3.2619]
[1728992546415,3.2614,153.33,153.26,15.66]
[1728992546613,15.66,153.32,153.28,3.2623]
[1728992546918,15.66,153.3,153.25,1.3364]
[1728992547813,15.66,153.3,153.27,3.2625]
[1728992548412,3.2619,153.31,153.28,3.2624]
[1728992548915,15.66,153.34,153.3,3.2618]
[1728992549116,5.26,153.34,153.25,16.9964]
[1728992550020,8.5212,153.34,153.27,3.2625]
[1728992550216,8.5212,153.34,153.27,5.26]
[1728992550614,5.26,153.34,153.27,5.26]
[1728992550816,15.66,153.36,153.28,15.66]
[1728992550817,20.92,153.36,153.28,15.66]
[1728992551321,24.1809,153.36,153.32,3.2614]
[1728992551510,24.1809,153.36,153.28,15.66]
[1728992551511,15.66,153.36,153.28,15.66]
[1728992551712,8.5207,153.37,153.34,3.2611]
[1728992553020,8.5207,153.37,153.33,3.2613]
[1728992553819,3.2608,153.36,153.33,3.2613]
[1728992554221,15.66,153.36,153.27,5.26]
[1728992554525,15.66,153.34,153.27,5.26]
[1728992554826,15.66,153.34,153.31,3.2617]
[1728992555216,3.2611,153.35,153.32,3.2615]
[1728992555921,20.92,153.37,153.27,20.92]
[1728992556119,1.4235,153.39,153.29,15.66]
[1728992556120,22.3435,153.39,153.29,15.66]
[1728992556315,22.3435,153.39,153.3,1.3709]
[1728992556826,3.2605,153.38,153.3,2.7034]
[1728992557127,22.3435,153.39,153.31,5.26]
[1728992557515,3.2604,153.38,153.35,3.2608]
[1728992557720,15.66,153.37,153.3,2.7034]
[1728992557922,18.86922254,153.37,153.3,1.3325]
[1728992558121,15.66,153.35,153.3,1.3325]
[1728992558629,3.2613,153.34,153.31,3.2618]
[1728992561123,15.66,153.35,153.3,1.3325]
[1728992561124,3.2618,153.31,153.3,1.3325]
[1728992561330,15.66,153.31,153.26,1.3394]
[1728992561828,3.2623,153.29,153.26,4.6021]
[1728992562225,3.2627,153.28,153.24,3.2633]
[1728992562427,15.66,153.29,153.22,6.5994]
[1728992563023,15.66,153.27,153.22,1.3394]
[1728992563827,25.08,153.28,153.22,1.3394]
[1728992564426,3.2634,153.24,153.22,1.3394]
[1728992564626,3.2634,153.24,153.21,3.2638]
[1728992566027,3.2637,153.23,153.19,3.2643]
[1728992566227,25.08,153.26,153.18,6.6595]
[1728992566725,3.2634,153.24,153.21,3.2639]
[1728992567922,25.08,153.26,153.18,6.6595]
[1728992568119,5.26,153.27,153.18,6.6595]
[1728992568323,3.30352285,153.29,153.18,6.6595]
[1728992568525,3.2628,153.27,153.23,3.2634]
[1728992568920,8.55001985,153.28,153.23,3.2634]
[1728992569325,3.263,153.26,153.23,3.2634]
[1728992573822,5.26,153.28,153.18,31.7395]
[1728992574033,25.08,153.3,153.18,31.7395]
[1728992574224,81.61093386,153.32,153.21,25.08]
[1728992574428,3.2621,153.3,153.27,3.2625]
[1728992576437,81.61093386,153.32,153.24,1.3963]
[1728992576630,26.07977094,153.31,153.22,5.26]
[1728992576832,0.99977094,153.3,153.22,5.26]
[1728992577027,3.18610517,153.29,153.22,5.26]
[1728992577228,3.263,153.26,153.23,3.2633]
[1728992577427,25.08,153.31,153.22,5.26]
[1728992578036,3.2627,153.27,153.24,3.2632]
[1728992578533,3.25793047,153.29,153.25,3.263]
[1728992578723,25.08,153.31,153.25,3.263]
[1728992578929,0.99965863,153.3,153.22,5.26]
[1728992579229,3.2628,153.27,153.24,3.2632]
[1728992580732,3.2629,153.26,153.24,3.2632]
[1728992582851,30.34,153.28,153.18,8.05]
[1728992583135,25.08,153.26,153.18,8.05]
[1728992583332,25.08,153.26,153.18,1.4211]
[1728992583639,3.2645,153.19,153.16,3.2649]
[1728992583828,15.69,153.19,153.16,3.2649]
[1728992584138,15.69,153.19,153.13,7.8604]
[1728992584331,15.69,153.22,153.13,7.8604]
[1728992584730,3.2638,153.22,153.19,3.2642]
[1728992586338,3.2639,153.21,153.19,3.2642]
[1728992586731,5.26,153.23,153.19,3.2642]
[1728992587340,5.26,153.23,153.2,3.264]
[1728992587833,8.5236,153.23,153.2,3.264]
[1728992588235,8.5236,153.23,153.13,7.8604]
[1728992588236,5.26,153.23,153.21,3.2638]
[1728992590441,8.5235,153.23,153.21,3.2638]
[1728992590942,3.2635,153.23,153.21,3.2638]
[1728992591241,3.2633,153.24,153.19,3.2643]
[1728992591544,3.2633,153.24,153.17,20.95]
[1728992591744,3.2635,153.23,153.17,20.95]
[1728992592047,3.2635,153.23,153.2,3.264]
[1728992592434,3.2638,153.22,153.17,5.26]
[1728992592639,15.69,153.24,153.2,3.264]
[1728992593039,3.2636,153.23,153.2,3.264]
[1728992593436,15.69,153.24,153.2,3.264]
[1728992593643,3.2636,153.23,153.2,3.264]
[1728992594739,3.2642,153.2,153.15,15.69]
[1728992594944,3.2642,153.2,153.15,20.95]
[1728992595144,3.2642,153.2,153.17,3.2647]
[1728992595549,3.264,153.21,153.15,20.95]
[1728992595843,15.69,153.24,153.19,3.2643]
[1728992596555,3.264,153.21,153.19,3.2643]
[1728992597549,3.264,153.21,153.18,3.2645]
[1728992597842,18.89716543,153.21,153.15,5.26]
[1728992598250,3.20716543,153.21,153.17,3.2646]
[1728992598437,15.69,153.23,153.17,3.2646]
[1728992598438,3.2643,153.2,153.17,3.2646]
[1728992598951,3.2644,153.2,153.16,3.2649]
[1728992599354,3.2645,153.19,153.16,3.2649]
[1728992604152,3.20758442,153.2,153.13,2.6004]
[1728992604448,15.69,153.19,153.13,1.2968]
[1728992604642,3.265,153.16,153.13,1.2968]
[1728992605253,3.265,153.16,153.13,4.5623]
[1728992609855,18.96082688,153.17,153.13,1.2968]
[1728992610052,3.2654,153.15,153.13,1.2968]
[1728992610848,3.2654,153.15,153.13,4.5624]
[1728992612748,3.2653,153.15,153.13,1.2968]
[1728992612951,3.2653,153.15,153.12,3.2657]
[1728992613352,18.96082688,153.17,153.1,1.3515]
[1728992613757,24.22082688,153.17,153.1,1.3515]
[1728992614052,24.22082688,153.17,153.12,3.2657]
[1728992614357,24.22082688,153.17,153.1,1.3515]
[1728992614664,15.69,153.15,153.07,6.644]
[1728992614959,8.53082688,153.17,153.06,2.6653]
[1728992614960,15.69,153.13,153.06,2.6653]
[1728992615154,3.2664,153.1,153.07,3.2667]
[1728992615357,3.2664,153.1,153.06,2.6653]
[1728992615754,3.2664,153.1,153.08,3.2666]
[1728992615959,20.95,153.13,153.08,3.2666]
[1728992616155,3.2662,153.11,153.06,2.6653]
[1728992616856,20.95,153.13,153.06,2.6653]
[1728992617260,20.95,153.13,153.08,3.2666]
[1728992617961,3.266,153.12,153.08,3.2666]
[1728992618154,20.95,153.13,153.06,2.6653]
[1728992618354,20.95,153.13,153.06,1.3515]
[1728992618355,15.69,153.11,153.06,1.3515]
[1728992618555,15.69,153.11,153.02,22.3159]
[1728992618758,15.69,153.11,153.02,23.6436]
[1728992619361,15.69,153.09,153.02,1.3277]
[1728992619561,20.95,153.09,153.02,1.3277]
[1728992619864,3.2671,153.07,153.03,3.2677]
[1728992620164,15.69,153.08,153.03,3.2677]
[1728992620555,3.2673,153.06,153.03,3.2677]
[1728992620751,24.21174995,153.09,153.03,3.2677]
[1728992620950,3.2675,153.05,153.02,4.5957]
[1728992621761,3.2677,153.04,153.01,3.2682]
[1728992621962,15.69,153.06,152.98,9.3011]
[1728992622660,1.3517,153.08,152.98,9.3011]
[1728992622661,5.26,153.08,153.01,15.69]
[1728992622965,3.2671,153.06,153.01,15.69]
[1728992623259,5.26,153.08,153.01,15.69]
[1728992623260,3.31252899,153.07,153.01,15.69]
[1728992623462,6.57962899,153.07,153.04,3.2675]
[1728992623662,5.26,153.08,153.01,15.69]
[1728992624267,3.2671,153.07,153.03,3.2678]
[1728992624963,3.2671,153.07,153.04,3.2676]
[1728992626963,3.267,153.07,153.04,3.2676]
[1728992627871,6.54978813,153.08,153.05,3.2671]
[1728992628164,20.95,153.1,153.01,15.69]
[1728992629071,3.267,153.07,153.04,3.2674]
[1728992629767,3.23840338,153.08,153.04,3.2674]
[1728992629972,3.267,153.07,153.04,3.2674]
[1728992630270,18.95096723,153.08,153.04,3.2674]
[1728992630471,15.69,153.08,153.04,3.2674]
[1728992631066,3.267,153.07,153.04,3.2674]
[1728992631372,5.26,153.11,153.03,15.69]
[1728992631764,3.2666,153.09,153.06,3.267]
[1728992632171,3.2672,153.06,153.04,1.3564]
[1728992632372,3.21976875,153.09,153.03,3.2677]
[1728992632373,15.69,153.08,153.03,3.2677]
[1728992632763,3.2673,153.06,153.03,3.2677]
[1728992632970,3.2673,153.06,153.04,3.2675]
[1728992633174,15.69,153.08,153.02,5.26]
[1728992633769,10.04,153.06,153.02,5.26]
[1728992633971,13.3072,153.06,153.03,3.2677]
[1728992634574,13.3072,153.06,153.04,3.2676]
[1728992635074,13.3072,153.06,153.02,5.26]
[1728992635375,13.3072,153.06,153.03,3.2677]
[1728992635970,1.3441,153.15,153.04,10.04]
[1728992636174,10.04,153.11,153.06,10.04]
[1728992636574,13.3061,153.11,153.08,3.2666]
[1728992636879,10.04,153.13,153.08,10.04]
[1728992637078,18.5656,153.14,153.11,3.2659]
[1728992637381,18.5656,153.14,153.08,10.04]
[1728992637382,18.5656,153.14,153.09,10.04]
[1728992637582,18.5656,153.14,153.11,3.2659]
[1728992637778,15.69,153.2,153.1,5.26]
[1728992637981,20.95,153.2,153.1,5.26]
[1728992638187,8.45125908,153.21,153.12,15.69]
[1728992638379,8.45125908,153.21,153.13,4.1497]
[1728992638774,5.26,153.21,153.13,4.1497]
[1728992639181,5.26,153.21,153.16,3.2648]
[1728992640088,3.2642,153.2,153.17,3.2648]
[1728992641383,3.2642,153.2,153.15,3.265]
[1728992641384,3.2644,153.19,153.15,3.265]
[1728992642493,3.2644,153.19,153.13,4.1497]
[1728992642786,3.2644,153.19,153.16,3.265]
[1728992644589,15.69,153.22,153.13,19.8397]
[1728992644897,15.69,153.24,153.15,15.69]
[1728992645095,15.69,153.24,153.16,5.26]
[1728992645389,15.69,153.24,153.15,15.69]
[1728992645591,15.69,153.24,153.17,5.26]
[1728992645992,3.2639,153.22,153.18,3.2644]
[1728992646190,15.69,153.2,153.14,5.26]
[1728992646491,3.2647,153.18,153.15,3.2651]